Cogmind - Beta 16.1 @@@ ROGUE MODE // 2026.02.22 @ 16:59:03 Player: unq Result: Destroyed by P-70 Sage with High-powered Shock Rifle Performance ------------- Evolutions (5) 2500 Regions Visited (21) 4200 Robots Destroyed (363) 1815 Value Destroyed (16609) 16609 Prototype IDs (65) 1300 Alien Tech Used (0) 0 Bonus (7764) 7764 TOTAL SCORE: 34188 Bonus ------- High Alert Combat Kills 2562 Follower Combat Kills 2450 Entered Garrisons 600 Network Hubs Disabled 200 Aligned with FarCom 300 Met Data Miner 300 Acquired ECA 300 Built Enhanced Grunts 300 A7 Reached Mainframe 300 Met R17 at Cetus 500 Friendly Fire -48 Cogmind --------- Core Integrity 0/1000 Matter 57/300 Energy 97/100 System Corruption 10% Temperature Cool (9) Movement Core (50) Location -5/Factory Parts ------- > --- POWER (2) -------- (None) > --- PROPULSION (4) --- (None) > --- UTILITY (7) ------ Advanced Hacking Suite > --- WEAPON (4) ------- (None) > --- INVENTORY (5) ---- ECM Suite Heavy Laser Magnetic Acceleration Cannon Improved Datajack Field Lobotomy Kit (5) Peak State ------------ > --- POWER ------------ Quantum Reactor Quantum Reactor > --- PROPULSION ------- Centrium Heavy Treads Centrium Heavy Treads > --- UTILITY ---------- High-capacity Storage Unit Enhanced Optical Array Improved Signal Interpreter Core Analyzer Advanced Recoil Stabilizer Centrium Medium Armor Plating Centrium Medium Armor Plating > --- WEAPON ----------- Advanced KE Penetrator Advanced KE Penetrator Advanced KE Penetrator Makeshift Hammer > --- INVENTORY -------- Centrium Heavy Treads Centrium Heavy Treads High-capacity Matter Pod Structural Scanner Advanced Sensor Array Precision Energy Filter Improved Weapon Cycler ECM Suite Centrium Medium Armor Plating Centrium Medium Armor Plating Advanced Hardlight Generator Advanced Hacking Suite Advanced System Shield Long-range Tractor Beam Rocket Array Rocket Array Improved Datajack Field Lobotomy Kit [Rating: 131] Favorites ----------- Power Enhanced Nuclear Core Engine Light Ion Engine Power Core Enhanced Nuclear Core Reactor Quantum Reactor Propulsion Light Treads Treads Light Treads Leg Aluminum Leg Wheel Armored Huge Wheel Utility High-capacity Storage Unit Device Seismic Detector Storage High-capacity Storage Unit Processor Improved Signal Interpreter Hackware Advanced Hacking Suite Protection Hardened Medium Armor Plating Weapon Advanced KE Penetrator Energy Gun Advanced Variable Charge Gun Energy Cannon Beam Cannon Ballistic Gun Advanced KE Penetrator Ballistic Cannon Light Cannon Launcher Rocket Array Special Weapon Plasma Cutter Impact Weapon Makeshift Hammer Slashing Weapon Longsword +1 Special Melee Weapon Improved Datajack Build | -11 -10 -10 -10 -9 -8 -8 -8 -8 -7 -7 -7 -7 -7 -7 -6 -6 -6 -6 -6 -6 -5 ------- Run | Yrd Mat Min Exi Min Mat Gar Mat Gar Fac Gar Fac Low Low Dat Pro Fac Ext Cet Arc Hub Fac Slots Evolved 10 | . . . . . 4 . . . 2 . . . . . . 2 . . . . 2 Power 1 | . . . . . . . . . . . . . . . . . . . . . 1 Propulsion 2 | . . . . . 2 . . . . . . . . . . . . . . . . Utility 5 | . . . . . 1 . . . 2 . . . . . . 2 . . . . . Weapon 2 | . . . . . 1 . . . . . . . . . . . . . . . 1 Parts Attached 228 | 9 13 2 1 3 27 7 18 14 19 10 13 . 2 . 4 27 20 9 . 7 23 Power 22 | 1 2 . . 1 3 1 2 1 . . 1 . . . . 4 1 1 . 1 3 Engine 12 | 1 2 . . 1 3 1 1 . . . . . . . . 1 1 . . . 1 Core 8 | . . . . . . . 1 1 . . 1 . . . . 3 . . . . 2 Reactor 2 | . . . . . . . . . . . . . . . . . . 1 . 1 . Propulsion 49 | 3 3 . . . 10 3 7 4 3 2 1 . . . . 4 5 3 . 1 . Treads 36 | . 3 . . . 10 3 7 4 . . . . . . . 2 3 3 . 1 . Leg 2 | 2 . . . . . . . . . . . . . . . . . . . . . Wheel 11 | 1 . . . . . . . . 3 2 1 . . . . 2 2 . . . . Hover . | . . . . . . . . . . . . . . . . . . . . . . Flight . | . . . . . . . . . . . . . . . . . . . . . . Utility 85 | 2 4 2 . 2 8 1 2 2 12 2 6 . 1 . 3 11 8 2 . 3 14 Device 45 | 1 2 2 . 1 5 . . 1 7 . 2 . 1 . 2 5 4 1 . 1 10 Storage 7 | 1 2 . . . 1 . . . . . 1 . . . . 1 1 . . . . Processor 6 | . . . . . . . . . 1 1 . . . . . 4 . . . . . Hackware 6 | . . . . . 1 . . . 1 . 1 . . . . 1 . . . . 2 Protection 21 | . . . . 1 1 1 2 1 3 1 2 . . . 1 . 3 1 . 2 2 Artifact . | . . . . . . . . . . . . . . . . . . . . . . Weapon 72 | 3 4 . 1 . 6 2 7 7 4 6 5 . 1 . 1 8 6 3 . 2 6 Energy Gun 15 | 2 . . . . 1 1 . . . 3 1 . . . . 2 1 1 . . 3 Energy Cannon 5 | . 1 . . . . . 1 1 . . . . . . . 2 . . . . . Ballistic Gun 35 | 1 1 . . . 3 . 6 4 3 2 4 . 1 . 1 2 3 2 . 2 . Ballistic Cannon 6 | . 1 . . . 1 . . . 1 . . . . . . . 1 . . . 2 Launcher 3 | . . . . . 1 . . 1 . 1 . . . . . . . . . . . Special Weapon 3 | . 1 . . . . . . 1 . . . . . . . . . . . . 1 Impact Weapon 2 | . . . . . . . . . . . . . . . . 2 . . . . . Slashing Weapon 1 | . . . 1 . . . . . . . . . . . . . . . . . . Piercing Weapon . | . . . . . . . . . . . . . . . . . . . . . . Special Melee Weapon 2 | . . . . . . 1 . . . . . . . . . . 1 . . . . Unidentified Prototypes 14 | . . 1 . . 3 . 2 . . . 2 . . . . 1 . 4 . . 1 Corrupted Parts 4 | . . . . . . . . . . . . . . . . . . . . 4 . System Corruption 34 | . . . . . . . . . . . . . . . . . . . . 34 . Parts Lost 58 | . 3 . . . 2 2 5 6 . 7 3 . 1 . 1 5 5 3 . 1 14 Power 8 | . 2 . . . . . . 1 . . 1 . . . . 1 . . . . 3 Propulsion 15 | . . . . . 1 2 1 2 . 1 1 . . . . 1 1 3 . . 2 Utility 14 | . . . . . 1 . 1 1 . 3 1 . 1 . . 1 1 . . 1 3 Weapon 21 | . 1 . . . . . 3 2 . 3 . . . . 1 2 3 . . . 6 Highest Loss Streak 8 | . 1 . . . 1 2 3 2 . 3 1 . 1 . 1 2 1 2 . 1 8 To Critical Strikes 3 | . . . . . . . . . . . . . . . . . . 1 . . 2 Average Backups 18 | 3 13 14 15 14 18 19 19 19 18 18 19 20 19 20 19 19 19 18 18 17 17 Power . | . . 1 1 1 1 1 1 . 1 1 1 1 1 1 1 . 1 1 1 1 . Propulsion 1 | 2 1 2 1 1 1 2 1 . 1 1 1 . . . . . . 1 2 2 1 Utility 7 | . 4 6 5 6 6 5 7 6 8 8 8 11 11 11 11 8 9 9 8 7 10 Weapon 6 | . 6 5 6 5 8 8 8 9 6 6 6 6 5 6 5 6 6 5 5 5 4 Tool/Special . | . . . . . . . . . . . . . . . . . . . . . . Unused Backups 52 | . 2 3 1 1 8 . 10 . 6 3 5 . . . 1 1 1 4 . . 6 Power 5 | . . . . . 1 . 1 . . . 1 . . . . . . 1 . . 1 Propulsion 8 | . 1 . . . 2 . 1 . . . 3 . . . . 1 . . . . . Utility 20 | . . 2 1 . . . 5 . 3 2 1 . . . 1 . . 2 . . 3 Weapon 19 | . 1 1 . 1 5 . 3 . 3 1 . . . . . . 1 1 . . 2 Tool/Special . | . . . . . . . . . . . . . . . . . . . . . . Average Slot Usage (%) 92 | . 99 100 100 100 98 99 99 99 85 83 83 84 83 64 83 92 99 90 86 85 81 Engine 4 | . 13 14 14 14 9 9 4 . . . . . . . . 1 . . . . 2 Core 3 | . . . . . . . 4 9 7 7 7 7 7 7 7 4 5 . . . 2 Treads 17 | . 26 28 28 28 35 35 35 35 2 . . . . . . 2 12 16 13 13 10 Wheel 5 | . . . . . . . . . 13 14 15 15 15 15 15 17 13 . . . . Device 8 | . 14 14 14 13 8 2 . 3 10 10 7 8 13 15 12 8 6 6 6 6 9 Storage 8 | . 14 14 14 14 9 9 9 9 7 7 7 7 7 7 7 6 6 6 6 6 4 Processor 9 | . . . . . . . . . 6 11 15 15 15 15 15 25 26 26 26 26 14 Protection 6 | . . . . . 9 14 17 14 11 6 6 6 1 . 2 4 5 6 6 5 4 Energy Gun 2 | . 8 . . . 2 6 . . . 5 2 7 7 . 2 1 2 6 6 5 2 Energy Cannon 4 | . 7 14 14 14 6 . . . 10 4 . . . . . 5 7 . . . . Ballistic Gun 10 | . 6 . . . 12 17 24 21 7 7 15 7 7 3 18 7 8 12 7 9 11 Ballistic Cannon 2 | . 4 14 12 13 4 . . . . 2 . . . . . . . . . . 2 Slashing Weapon 1 | . . . 1 . 1 2 . 4 3 . 4 6 5 . . . . . . . . Peak Build Rating 131 | 7 10 16 18 18 35 37 43 43 59 59 65 65 65 55 57 74 75 111 111 115 131 Average Rating 52 | 5 7 8 11 11 27 33 35 37 53 55 57 64 60 41 52 67 68 94 108 109 114 On Entrance 47 | . 7 8 10 11 13 32 32 39 34 54 56 57 65 52 55 53 73 59 111 108 114 Avg Prop Armor Cover (%) 13 | 12 . . . . . . . . . . . . . . . 13 13 13 . . 7 Naked Turns 52 | . . . . . . . . . . . . . . . . . . . . . 52 Heaviest Build 118 | 13 30 30 30 39 67 62 68 71 76 78 96 80 101 81 86 89 78 85 85 92 118 Greatest Support 160 | 16 40 40 40 40 92 89 86 83 80 56 56 56 56 56 56 60 32 160 160 160 160 Greatest Overweight (x) 2 | 1 . . . . 1 . 1 1 2 1 1 1 1 1 1 2 2 2 . . 1 Average Overweight (x) . | . . . . . . . . . . 1 . 1 1 . 1 1 1 . . . . Largest Inventory Capacity 20 | 8 15 15 15 15 20 20 20 20 20 20 20 20 20 20 20 20 20 20 20 20 20 Average Capacity 18 | 7 14 15 15 15 19 20 20 20 20 20 20 20 20 20 20 20 20 20 20 20 19 Most Carried 20 | 8 15 15 15 15 20 20 20 20 20 20 20 20 20 20 20 20 20 20 20 20 20 Average Carried 18 | 3 13 14 14 14 18 19 19 19 19 19 19 19 19 19 19 19 19 19 20 19 19 Final Capacity 20 | 8 15 15 15 15 20 20 20 20 20 20 20 20 20 20 20 20 20 20 20 20 5 Final Carried 20 | 8 15 15 15 15 20 19 20 19 20 20 20 20 20 19 19 19 20 20 20 19 5 Class Distribution -------------------- 33% | Mutant 16% | Scavenger-Tank 8% | Scavenger-Assassin 8% | Tank 8% | Skirmisher 5% | Assassin 5% | Scavenger-Mutant 5% | Gunner Dominant Class ---------------- Mutant | -10/Materials Mutant | -10/Mines Mutant | -10/Exiles Mutant | -9/Mines Tank | -8/Materials Scavenger-Tank | -8/Garrison Scavenger-Tank | -8/Materials Scavenger-Tank | -8/Garrison Mutant | -7/Factory Tank | -7/Garrison Mutant | -7/Factory Mutant | -7/Lower Caves Assassin | -7/Lower Caves Mutant | -7/Data Miner Skirmisher | -6/Proximity Caves Assassin | -6/Factory Gunner | -6/Extension Commander-Tank | -6/Cetus Commander-Mutant | -6/Archives Scavenger-Tank | -6/Hub_04(d) Scavenger-Assassin | -5/Factory Resources | -11 -10 -10 -10 -9 -8 -8 -8 -8 -7 -7 -7 -7 -7 -7 -6 -6 -6 -6 -6 -6 -5 ----------- Run | Yrd Mat Min Exi Min Mat Gar Mat Gar Fac Gar Fac Low Low Dat Pro Fac Ext Cet Arc Hub Fac Matter Collected 14728 | 208 505 74 18 254 1035 794 1015 1414 1020 883 1434 449 143 . 455 1275 1023 291 60 264 2114 Remotely 1267 | . . . . . . . . 206 . . 433 . . . . 64 204 . . . 360 Salvage Created 14792 | 131 579 55 . 203 1543 785 1064 1188 960 1434 781 . 15 . 314 1207 1132 267 316 453 2365 Parts 799 | 13 44 1 . 22 76 46 70 93 59 60 39 . 9 . 19 34 61 12 5 28 108 Haulers Intercepted 11 | . 2 . . . 4 . 2 . 2 . . . . . . . . . . 1 . Recyclers Shooed 7 | 1 1 . . . 1 . . . 1 . . . . . . . . . . . 3 Parts Field Recycled . | . . . . . . . . . . . . . . . . . . . . . . Retrieved Matter . | . . . . . . . . . . . . . . . . . . . . . . Parts Self-Destructed 14 | . . . . . . . . . . . . . . . 14 . . . . . . Prevented . | . . . . . . . . . . . . . . . . . . . . . . Parts Restored . | . . . . . . . . . . . . . . . . . . . . . . Kills | -11 -10 -10 -10 -9 -8 -8 -8 -8 -7 -7 -7 -7 -7 -7 -6 -6 -6 -6 -6 -6 -5 ------- Run | Yrd Mat Min Exi Min Mat Gar Mat Gar Fac Gar Fac Low Low Dat Pro Fac Ext Cet Arc Hub Fac Combat Hostiles Destroyed 258 | . 13 2 . 9 26 17 18 36 7 31 12 . 3 . 12 14 18 4 2 4 30 Melee 3 | . . . . . . . . 3 . . . . . . . . . . . . . Guns 162 | . 7 . . . 15 17 18 28 4 12 12 . . . 6 10 11 4 2 3 13 Cannons 54 | . 6 2 . 9 8 . . 1 3 8 . . . . . 4 6 . . . 7 AOE 35 | . . . . . 1 . . 4 . 11 . . 3 . 6 . . . . . 10 Classes Destroyed 20 | 3 6 . . . 2 2 1 . 1 1 . . 1 . 1 . . . . 1 1 Worker 29 | 1 . . . . 5 . 2 . 11 . 3 . . . . . 2 . . 1 4 Builder 12 | . 1 . . . . . 2 . 1 . . . . . . . 1 . . 2 5 Tunneler 9 | 2 . . . 1 . . 1 . 2 . 1 . . . . . . . . . 2 Hauler 11 | . 2 . . . 4 . 2 . 2 . . . . . . . . . . 1 . Recycler 15 | 1 . . . . 1 . 1 . 2 . 2 . . . . 2 . . . . 6 Mechanic 2 | . . . . . . . . . 1 . . . . . . . . . . . 1 Operator 10 | . 1 . . . 1 . 1 . 1 . . . . . . . . . 5 . 1 Drone 2 | . . . . . . . . . . . . . . . 2 . . . . . . Watcher 16 | . 3 . . . 1 1 1 1 2 . 1 . . . . 2 1 1 . . 2 Swarmer 75 | . 3 1 . 7 4 7 3 13 . 20 4 . . . 6 . 2 . . . 5 Cutter 3 | . . . . . . 1 . 2 . . . . . . . . . . . . . Saboteur 1 | . . . . . . . . . . . . . . . . . . . . . 1 Grunt 90 | . 10 1 . 2 16 4 7 9 1 6 4 . . . 4 6 8 2 . 1 9 Duelist 3 | . . . . . . . 1 . . . . . . . . 1 . 1 . . . Sentry 42 | . . . . . 5 2 6 6 2 2 1 . . . . 4 8 . 2 2 2 Specialist 1 | . . . . . . . . . . 1 . . . . . . . . . . . Hunter 12 | . . . . . 1 1 1 1 1 2 . . . . . 1 . . . 1 3 Programmer 25 | . . . . . . 2 . 5 3 . 3 . . . . 2 . . . . 10 Cetus Guard 1 | . . . . . . . . . . . . . . . . . . 1 . . . Master Thief 3 | . . . . . . . . . . . . . 3 . . . . . . . . Savage 1 | . . . . . . . . . . . . . . . . . . . . 1 . Best Kill Streak 17 | 3 3 1 . 4 5 3 5 8 5 13 6 . 3 . 3 4 4 3 3 4 17 Combat Bots Only 13 | . 3 1 . 4 4 3 3 8 2 13 5 . 3 . 3 2 2 3 2 1 11 Max Kills in Single Turn 11 | 1 2 1 . 1 3 1 2 4 2 4 1 . 3 . 3 1 1 1 1 1 11 Gunslinging 1 | . 1 . . . . . . 1 . . . . . . . . . . . . . Exploded 7 | . . . . . 1 . . 4 . 4 . . 3 . 3 . . . . . 7 Melee 1 | . . . . . . . . 1 . . . . . . . . . . . . . Uniques/NPCs Destroyed . | . . . . . . . . . . . . . . . . . . . . . . Combat | -11 -10 -10 -10 -9 -8 -8 -8 -8 -7 -7 -7 -7 -7 -7 -6 -6 -6 -6 -6 -6 -5 -------- Run | Yrd Mat Min Exi Min Mat Gar Mat Gar Fac Gar Fac Low Low Dat Pro Fac Ext Cet Arc Hub Fac Hostile Shots Fired 2030 | . 68 8 . 22 125 50 117 153 71 192 93 65 11 . 22 216 239 26 8 156 388 Missed 578 | . 16 3 . 8 33 15 32 35 22 60 18 29 5 . 4 71 84 8 3 43 89 Hits 1452 | . 52 5 . 14 92 35 85 118 49 132 75 36 6 . 18 145 155 18 5 113 299 Melee 12 | . . . . . . 3 . 2 . . . . 6 . . 1 . . . . . Projectile 1440 | . 52 5 . 14 92 32 85 116 49 132 75 36 . . 18 144 155 18 5 113 299 AOE 3 | . . . . . . 3 . . . . . . . . . . . . . . . Critical Strikes 59 | . 1 . . . 4 4 4 6 1 5 2 . . . . 4 2 6 . 3 17 Actively Blocked 2 | . . . . . . 1 . 1 . . . . . . . . . . . . . Part Disruptions 2 | . . . . . . . . 1 . . 1 . . . . . . . . . . Damage Taken 20007 | . 615 40 . 124 1379 583 1534 1668 530 1549 988 272 105 . 373 1474 1717 367 111 1608 4970 Core 2267 | . 59 8 . 28 103 58 26 72 77 140 87 54 10 . 23 145 125 74 . 161 1017 Absorbed by Shields 927 | . . . . . . . . . 24 262 . . . . . 10 20 147 . . 464 Reduced by Siege Mode 20 | . . . . . . . . . . . . . . . . . . . . . 20 Redirected to Shielding 67 | . . . . . . 7 11 27 22 . . . . . . . . . . . . Ignored by Resistances 436 | . . . . 14 74 . . . . 6 75 49 . . 11 102 18 . . . 87 Regen/Repaired (Parts) 649 | . 371 . . . 176 . . . . . . . . . . . . . . . 102 Core Remaining (%) 59 | 100 . . . 62 . . . 52 . . . . . . 44 . . . . 40 . Volleys Fired 718 | 4 54 6 6 12 80 61 71 69 20 53 35 . 2 . 15 50 74 17 5 21 63 Largest 4 | 2 2 2 2 2 3 3 3 3 3 3 3 . 2 . 3 3 3 3 3 3 4 Hottest 195 | 70 110 90 90 90 127 119 76 121 176 177 128 . 108 . 148 193 193 150 150 150 195 Shots Fired 1932 | 8 106 12 8 24 240 148 208 194 57 136 105 . 4 . 40 124 205 46 14 53 200 Gun 1500 | 8 70 . . . 146 148 208 181 29 82 105 . 3 . 37 70 155 46 14 53 145 Cannon 418 | . 34 12 8 24 94 . . 12 28 50 . . . . . 54 50 . . . 52 Launcher 12 | . . . . . . . . 1 . 4 . . 1 . 3 . . . . . 3 Special 2 | . 2 . . . . . . . . . . . . . . . . . . . . Kinetic 1374 | 4 48 6 6 12 160 103 208 181 30 65 88 . 2 . 27 61 121 31 10 33 178 Thermal 541 | 4 58 6 2 12 80 44 . 12 27 67 17 . 1 . 10 63 84 15 4 20 15 Explosive 12 | . . . . . . . . 1 . 4 . . 1 . 3 . . . . . 3 Electromagnetic 5 | . . . . . . 1 . . . . . . . . . . . . . . 4 Robot Hit Streak 31 | 5 8 6 . 6 12 16 10 10 10 13 9 . 5 . 11 31 22 14 8 8 14 Robot Miss Streak 12 | . 5 3 . 4 4 4 5 6 3 5 4 . 1 . 12 4 2 4 1 4 3 Penetration Max 1 | . . . . . . . 1 . . 1 . . . . . . 1 1 . 1 1 Secondary Targets 30 | . 3 . . . . . 3 11 . . 5 . . . . 1 2 1 2 . 2 Max Gunslinging Chain 2 | . 1 . . . . . 1 2 . . 1 . . . . 1 1 1 1 . 1 Shots Hit Robots 1286 | 5 57 6 . 12 150 74 123 125 71 90 76 . 1 . 26 89 170 32 19 40 120 Core Hits 741 | 5 31 2 . 10 57 33 48 67 33 91 37 . 10 . 35 43 72 37 5 16 109 Critical Kills 18 | . . . . . 2 . 1 . . . . . . . . 1 . 1 . 4 9 Critical Parts Destroyed 20 | . . . . . . . 2 . . 1 . . . . . 1 . . 3 3 10 Critical Strikes 51 | 1 3 . . . 3 1 3 2 1 1 . . . . 2 2 1 2 3 7 19 Burn 8 | 1 3 . . . . 1 . . . . . . . . 2 . . 1 . . . Meltdown 2 | . . . . . 2 . . . . . . . . . . . . . . . . Destroy 33 | . . . . . . . 3 . . 1 . . . . . 1 1 1 2 5 19 Blast 1 | . . . . . 1 . . . . . . . . . . . . . . . . Smash 4 | . . . . . . . . . . . . . . . . 1 . . 1 2 . Sever 3 | . . . . . . . . 2 1 . . . . . . . . . . . . Melee Attacks 381 | . . . 20 3 9 31 12 55 46 17 40 13 5 . . 30 29 1 7 16 47 Impact 99 | . . . . . . . . . . . . . . . . 30 1 . 5 16 47 Slashing 241 | . . . 20 3 9 21 12 55 46 17 40 13 5 . . . . . . . . Piercing . | . . . . . . . . . . . . . . . . . . . . . . Sneak Attacks 88 | . . . . . 3 10 . . 22 . 6 . . . . 2 28 1 7 2 7 Combat Hostiles . | . . . . . . . . . . . . . . . . . . . . . . Follow-up Attacks . | . . . . . . . . . . . . . . . . . . . . . . Damage Inflicted 36426 | 76 866 161 . 254 3353 1679 2340 2662 3353 3887 1894 . 323 . 795 2060 3556 844 784 1455 6084 Guns 19083 | 75 544 . . . 1486 944 2263 1886 359 1041 1325 . 36 . 484 1015 2453 844 339 1055 2934 Cannons 5858 | . 296 150 . 238 1197 . . 122 564 574 . . . . . 898 1092 . . . 727 Explosions 4335 | . . . . . 354 . 49 323 143 1228 . . 287 . 311 . . . . . 1640 Melee 6997 | . . . . . 297 735 . 331 2287 1044 569 . . . . 147 . . 445 359 783 Ramming 153 | 1 26 11 . 16 19 . 28 . . . . . . . . . 11 . . 41 . Kinetic 17621 | 51 451 79 . 90 1677 624 2263 1886 394 859 1085 . . . 401 830 1926 569 236 783 3417 Thermal 7729 | 24 389 71 . 148 1360 310 . 122 672 756 240 . 36 . 83 1083 1619 275 103 272 166 Explosive 3838 | . . . . . . . 49 323 . 1228 . . 287 . 311 . . . . . 1640 Electromagnetic 88 | . . . . . . 10 . . . . . . . . . . . . . . 78 Impact 1734 | . . . . . . . . . . . . . . . . 147 . . 445 359 783 Slashing 5263 | . . . . . 297 735 . 331 2287 1044 569 . . . . . . . . . . Piercing . | . . . . . . . . . . . . . . . . . . . . . . Highest Corruption 41 | . . . . . 4 1 2 7 1 1 4 4 4 4 4 1 1 1 1 41 10 Average Corruption 2 | . . . . . 2 1 1 6 1 1 3 4 4 4 4 1 1 1 1 1 5 Corruption Purged 4 | . . . . . 4 . . . . . . . . . . . . . . . . Corruption Blocked . | . . . . . . . . . . . . . . . . . . . . . . Effects 256 | . . . . . 3 7 20 48 2 10 34 17 9 2 22 3 13 7 2 9 48 Message Errors 47 | . . . . . . 3 3 7 1 4 6 3 1 1 2 1 2 1 . 3 9 Matter Fused 68 | . . . . . 1 . 8 14 . 3 12 3 4 1 3 1 4 1 . 1 12 Heat Flow Errors 23 | . . . . . 1 2 4 6 . . 1 1 . . 3 . 1 1 1 . 2 Energy Discharges 21 | . . . . . . 2 1 5 . . 2 . . . 4 . 3 1 . . 3 Parts Rejected 6 | . . . . . . . 1 . . . 1 1 . . . . 1 . . . 2 Parts Fused 5 | . . . . . . . . . . . . 3 . . 1 . . . . . 1 Data Loss (minor) 42 | . . . . . . . 2 5 . 2 6 6 3 . 3 1 1 . 1 2 10 Data Loss (major) 14 | . . . . . 1 . . 1 1 . 3 . . . 2 . . 1 . 2 3 Misfires 13 | . . . . . . . 1 3 . 1 2 . 1 . 2 . . 1 . . 2 Alerts 6 | . . . . . . . . 2 . . . . . . 1 . . 1 . . 2 Misdirections 1 | . . . . . . . . . . . . . . . . . . . . 1 . Weapon Failures 10 | . . . . . . . . 5 . . 1 . . . 1 . 1 . . . 2 Overload Shots . | . . . . . . . . . . . . . . . . . . . . . . Overflow Damage 1974 | . . 18 . . 180 5 9 2 674 10 54 . 10 . . 126 9 . 370 37 470 Projectiles 54 | . . 18 . . 13 . . 2 . . . . . . . 9 9 . . . 3 Explosions 119 | . . . . . 43 . 9 . 36 10 . . 10 . . . . . . . 11 Melee 1801 | . . . . . 124 5 . . 638 . 54 . . . . 117 . . 370 37 456 Knockbacks 21 | . . 2 . 2 5 . . . . . . . . . . . . . 3 . 9 Impact 6 | . . . . . . . . . . . . . . . . . . . 3 . 3 Kinetic 14 | . . 2 . 2 5 . . . . . . . . . . . . . . . 5 Secondary 1 | . . . . . . . . . . . . . . . . . . . . . 1 Self-Inflicted Damage 601 | . . . . . 50 . . 38 . 31 . . 92 . 56 . 5 . . . 329 Shots 26 | . . . . . 1 . . 2 . 2 . . 4 . 3 . . . . . 14 Rammed 16 | . 4 2 . 1 1 . 3 . . . . . . . . . 1 . . 4 . Targets Rammed 19 | 1 4 2 . 1 1 . 5 . . . . . . . . . 1 . . 4 . Kicked 1 | 1 . . . . . . . . . . . . . . . . . . . . . Crushed 2 | . . . . . . . 2 . . . . . . . . . . . . . . Highest Temperature 750 | 27 150 60 60 180 252 391 323 555 210 129 262 220 27 . 192 308 416 241 197 174 750 Average Temperature 92 | 12 32 22 30 77 75 76 88 127 67 33 84 121 18 . 82 76 112 39 42 48 161 Received Heat Transfer 4783 | . 324 . . 33 675 126 396 351 77 241 282 36 . . 90 438 498 16 18 321 861 Effects 49 | . . . . . . 1 . 12 . . 2 . . . . . 2 3 . . 29 Shutdowns 12 | . . . . . . . . 5 . . . . . . . . 1 . . . 6 Energy Bleed 4 | . . . . . . 1 . 1 . . . . . . . . . . . . 2 Interference 18 | . . . . . . . . 3 . . 2 . . . . . . 3 . . 10 Matter Decay 6 | . . . . . . . . 2 . . . . . . . . 1 . . . 3 Short Circuit 2 | . . . . . . . . 1 . . . . . . . . . . . . 1 Damage (minor) 2 | . . . . . . . . . . . . . . . . . . . . . 2 Damage (major) 4 | . . . . . . . . . . . . . . . . . . . . . 4 Damage (core) 1 | . . . . . . . . . . . . . . . . . . . . . 1 Siege Activations 1 | . . . . . . . . . . . . . . . . . . . . . 1 Total Turns 20 | . . . . . . . . . . . . . . . . . . . . . 20 Longest Duration 20 | . . . . . . . . . . . . . . . . . . . . . 20 Martial Activations . | . . . . . . . . . . . . . . . . . . . . . . Shielding Activations . | . . . . . . . . . . . . . . . . . . . . . . Robots Disrupted . | . . . . . . . . . . . . . . . . . . . . . . Combat Hostiles . | . . . . . . . . . . . . . . . . . . . . . . Robots Corrupted 10 | . . . . . . . . . . . . . . . . 1 . . 4 1 4 Combat Hostiles 1 | . . . . . . . . . . . . . . . . . . . . 1 . Parts Fried 21 | . . . . . . . . . . . . . . . . 4 . . 10 . 7 Impact Corruptions 29 | . . . . . . . . . . . . . . . . 3 . . 13 1 12 Robots Melted 3 | . . . . . 2 . . . . . . . . . . . 1 . . . . Combat Hostiles 3 | . . . . . 2 . . . . . . . . . . . 1 . . . . Parts Melted 20 | . 3 1 . 1 1 1 . . . . 1 . . . . 5 4 . . 1 2 Heat Transferred 13526 | 148 1258 148 . 296 2322 666 . 185 988 1424 407 . 75 . 296 1508 2641 461 148 333 222 Parts Sabotaged . | . . . . . . . . . . . . . . . . . . . . . . Parts Stolen 4 | . . . . . . . . . . . . . 4 . . . . . . . . Parts Stripped . | . . . . . . . . . . . . . . . . . . . . . . Power Chain Reactions . | . . . . . . . . . . . . . . . . . . . . . . Alert | -11 -10 -10 -10 -9 -8 -8 -8 -8 -7 -7 -7 -7 -7 -7 -6 -6 -6 -6 -6 -6 -5 ------- Run | Yrd Mat Min Exi Min Mat Gar Mat Gar Fac Gar Fac Low Low Dat Pro Fac Ext Cet Arc Hub Fac Maximum Alert Level 5 | . . . . . 1 4 3 5 3 5 3 . . . . 1 2 2 1 3 3 Low Security (%) 41 | 100 100 100 . 100 81 8 . . . . . . . . . 80 81 67 6 3 30 Level 1 10 | . . . . . 18 8 . . . . . . . . . 19 8 23 93 18 29 Level 2 16 | . . . . . . 41 63 16 . 3 . . . . . . 9 9 . 45 37 Level 3 23 | . . . . . . 25 36 23 100 30 100 . . . . . . . . 31 3 Level 4 5 | . . . . . . 15 . 27 . 46 . . . . . . . . . . . Level 5 3 | . . . . . . . . 32 . 19 . . . . . . . . . . . High Security . | . . . . . . . . . . . . . . . . . . . . . . Max Security . | . . . . . . . . . . . . . . . . . . . . . . Peak Influence 2003 | 15 116 73 . 116 269 1217 786 2003 1051 1933 1032 . . . . 333 455 431 314 885 858 Initial 1051 | . 3 6 . . 12 169 592 503 1051 667 1014 . . . . 333 55 243 142 71 311 Average 483 | 2 35 12 . 23 125 712 672 1278 946 1310 928 . . . . 124 118 175 241 590 306 Influence Increases 13545 | 20 460 139 . 249 857 1208 854 1560 464 1356 601 15 . . 360 888 1102 662 243 1128 1379 Destroy 0b10 Robot/C 6240 | . 260 100 . 200 520 440 440 720 140 680 260 . . . 200 280 660 300 80 360 600 Destroy 0b10 Robot/NC 615 | 20 35 . . 5 60 20 55 5 110 30 35 . . . 10 20 35 10 25 35 105 Destroy Leader 1088 | . 80 20 . 30 120 20 136 40 68 60 72 . . . 30 94 82 20 . 92 124 Allied During Kill 1204 | . . 19 . 11 . 37 14 . . 6 1 . . . . . 243 301 105 467 . Successful Hack 302 | . 21 . . . 29 . 25 28 18 . 65 . . . . 18 30 3 . 18 47 Select Force Hacks 90 | . 60 . . . . . 30 . . . . . . . . . . . . . . Disable Machine 675 | . . . . . 45 30 60 60 75 45 30 . . . . 90 15 15 30 75 105 Anti-Garrison Action 1450 | . . . . . . 500 . 550 . 400 . . . . . . . . . . . Destroy Structure 876 | . 4 . . 3 38 86 49 97 38 15 33 . . . . 41 22 13 3 66 368 Advance Influence 300 | . . . . . . . . . . . . . . . . 300 . . . . . Partial Spotted 45 | . . . . . . . . . . . 30 . . . . . . . . . 15 Lose Combat Pursuer 660 | . . . . . 45 75 45 60 15 120 75 15 . . 120 45 15 . . 15 15 Influence Decreases 12687 | 15 447 157 . 216 630 251 1297 331 1514 376 1831 611 107 . 306 829 780 740 395 696 1158 Entered New Map 4407 | . 2 12 . . 21 91 625 271 952 286 919 261 21 . . 21 58 192 215 134 326 Time Decay 6355 | 15 425 145 . 165 589 . 592 . 562 . 562 350 86 . 296 530 440 378 180 342 698 Search Patrol Dispatched 100 | . . . . . . . . . . . . . . . . 100 . . . . . Lost Part 544 | . 20 . . . 20 20 50 60 . 70 30 . . . 10 50 40 30 . 10 134 Lost Ally 703 | . . . . 51 . 140 30 . . 20 20 . . . . . 242 140 . 60 . Purge Threat 578 | . . . . . . . . . . . 300 . . . . 128 . . . 150 . Squads Dispatched 59 | . 6 1 . . 2 . 4 . 4 . 9 . . . . 6 5 . . 7 15 Investigation 15 | . 5 1 . . 1 . 1 . . . 2 . . . . 3 1 . . . 1 Extermination 15 | . . . . . . . . . 2 . 5 . . . . 2 . . . 1 5 Reinforcement 21 | . 1 . . . 1 . 2 . 2 . 1 . . . . 1 4 . . 5 4 Assault 4 | . . . . . . . 1 . . . 1 . . . . . . . . . 2 Garrison 4 | . . . . . . . . . . . . . . . . . . . . 1 3 Intercept . | . . . . . . . . . . . . . . . . . . . . . . Searches Triggered 1 | . . . . . . . . . . . . . . . . 1 . . . . . Data Miner Redirects 3 | . . . . . . . . . . . . . . . . . 1 . . . 2 Construction Impeded 8 | . . . . . . . . . . . 1 . . . . . 2 . . 2 3 Haulers Reinforced 1 | . . . . . . . . . 1 . . . . . . . . . . . . Active Scanning Responses . | . . . . . . . . . . . . . . . . . . . . . . Cargo Convoy Interrupts 2 | . . . . . . . . . . . . . . . . 1 . . . . 1 Stealth | -11 -10 -10 -10 -9 -8 -8 -8 -8 -7 -7 -7 -7 -7 -7 -6 -6 -6 -6 -6 -6 -5 --------- Run | Yrd Mat Min Exi Min Mat Gar Mat Gar Fac Gar Fac Low Low Dat Pro Fac Ext Cet Arc Hub Fac Distress Signals 23 | . 1 . . . 2 2 4 1 . . . . . . 1 3 4 2 . 2 1 Communications Jammed . | . . . . . . . . . . . . . . . . . . . . . . Distress Signals . | . . . . . . . . . . . . . . . . . . . . . . Times Spotted 455 | . 21 5 . 10 40 31 36 39 13 38 21 2 4 . 18 20 40 17 6 26 68 Peak Tracking Total 21 | . 4 3 9 4 5 3 6 7 1 9 4 1 4 . 5 3 5 5 2 8 21 Tactical Retreats 32 | . . . . . 3 3 3 2 1 3 4 1 . . 3 3 1 . . 1 4 ECM-based Alert Blocks 4 | . . . . . . . . . . . . . . . . 1 . . . . 3 Traps | -11 -10 -10 -10 -9 -8 -8 -8 -8 -7 -7 -7 -7 -7 -7 -6 -6 -6 -6 -6 -6 -5 ------- Run | Yrd Mat Min Exi Min Mat Gar Mat Gar Fac Gar Fac Low Low Dat Pro Fac Ext Cet Arc Hub Fac Traps Triggered 32 | . 3 . . . . . 1 2 2 9 3 . . . . 4 4 . . . 4 Indirectly . | . . . . . . . . . . . . . . . . . . . . . . Trap Hack Attempts 8 | . . . . . . 8 . . . . . . . . . . . . . . . Triggered . | . . . . . . . . . . . . . . . . . . . . . . Disarmed 1 | . . . . . . 1 . . . . . . . . . . . . . . . Reprogrammed . | . . . . . . . . . . . . . . . . . . . . . . Reused . | . . . . . . . . . . . . . . . . . . . . . . Traps Extracted . | . . . . . . . . . . . . . . . . . . . . . . Installed . | . . . . . . . . . . . . . . . . . . . . . . Triggered . | . . . . . . . . . . . . . . . . . . . . . . Machines | -11 -10 -10 -10 -9 -8 -8 -8 -8 -7 -7 -7 -7 -7 -7 -6 -6 -6 -6 -6 -6 -5 ---------- Run | Yrd Mat Min Exi Min Mat Gar Mat Gar Fac Gar Fac Low Low Dat Pro Fac Ext Cet Arc Hub Fac Machines Disabled 81 | . . . 7 . 3 13 4 14 5 9 2 . . . . 6 3 1 2 5 7 Max in Single Turn 4 | . . . 1 . 1 2 1 1 4 1 1 . . . . 1 1 1 1 1 4 Garrison Relay 19 | . . . . . . 6 . 8 . 5 . . . . . . . . . . . Phase Generator 3 | . . . . . . 1 . 1 . 1 . . . . . . . . . . . Network Hub 1 | . . . . . . . . . . . . . . . . . . . . 1 . Machines Repaired . | . . . . . . . . . . . . . . . . . . . . . . Machines Dismantled 4 | . . . . . . . . 1 . 2 . . . . . . . 1 . . . Machines Sabotaged . | . . . . . . . . . . . . . . . . . . . . . . Overloaded Fab Kills . | . . . . . . . . . . . . . . . . . . . . . . Hacking | -11 -10 -10 -10 -9 -8 -8 -8 -8 -7 -7 -7 -7 -7 -7 -6 -6 -6 -6 -6 -6 -5 --------- Run | Yrd Mat Min Exi Min Mat Gar Mat Gar Fac Gar Fac Low Low Dat Pro Fac Ext Cet Arc Hub Fac Machines Accessed 105 | . 9 1 3 1 9 1 11 3 7 2 16 1 1 4 . 12 4 3 . 6 11 Terminals 61 | . 6 . . 1 5 1 7 3 3 2 9 1 1 . . 6 4 3 . 6 3 Fabricators 5 | . . . . . . . . . . . 2 . . . . 1 . . . . 2 Repair Stations 7 | . 1 . . . 1 . 1 . 1 . 1 . . . . . . . . . 2 Recycling Units 11 | . 2 . . . . . 1 . 1 . 2 . . . . 3 . . . . 2 Scanalyzers 9 | . . . . . 2 . 1 . 1 . 2 . . . . 2 . . . . 1 Garrison Access 4 | . . . . . 1 . 1 . 1 . . . . . . . . . . . 1 Total Hacks 309 | . 28 1 6 1 30 3 29 9 12 4 41 1 2 33 . 36 6 6 . 16 45 Successful 176 | . 21 1 6 . 20 1 14 3 7 . 21 1 2 33 . 14 2 1 . 8 21 Failed 130 | . 7 . . 1 9 2 14 6 5 4 20 . . . . 22 4 5 . 8 23 Catastrophic 27 | . . . . 1 1 1 2 1 2 1 4 . . . . 5 2 3 . 1 3 Database Lockouts 3 | . . . . . 1 . 1 . . . . . . . . . . . . . 1 Manual 89 | . 14 . 1 1 7 1 10 3 3 1 14 . . . . 12 2 1 . 7 12 Terminals 152 | . 16 . . 1 15 3 19 9 4 4 23 1 2 . . 17 6 6 . 16 10 Fabricators 21 | . . . . . . . . . . . 8 . . . . 4 . . . . 9 Repair Stations 27 | . 10 . . . 5 . 2 . 1 . 1 . . . . . . . . . 8 Recycling Units 28 | . 2 . . . . . 2 . 1 . 5 . . . . 11 . . . . 7 Scanalyzers 34 | . . . . . 8 . 5 . 4 . 4 . . . . 4 . . . . 9 Garrison Access 7 | . . . . . 2 . 1 . 2 . . . . . . . . . . . 2 Terminal Hacks 79 | . 3 1 6 . 6 1 3 2 . . 7 1 2 33 . 3 2 1 . 6 2 Record 20 | . . . 5 . . . . . . . . 1 2 11 . . . 1 . . . Part Schematic 12 | . . . . . . . . . . . . . . 12 . . . . . . . Robot Schematic 7 | . . . . . . . . . . . . . . 7 . . . . . . . Robot Analysis 3 | . 1 . . . . . . . . . . . . . . . 1 . . 1 . Prototype ID Bank 9 | . 2 . . . 1 . . . . . 1 . . 3 . . 1 . . 1 . Open Door 1 | . . 1 . . . . . . . . . . . . . . . . . . . Open DSF 1 | . . . . . . . . . . . . . . . . 1 . . . . . Branch Access Points 2 | . . . . . 1 . . . . . 1 . . . . . . . . . . Emergency Access Points 1 | . . . . . . . . 1 . . . . . . . . . . . . . Alert Level 2 | . . . . . 1 . . . . . 1 . . . . . . . . . . Unreport Threat 4 | . . . . . . . . . . . 2 . . . . 1 . . . 1 . Locate Traps 5 | . . . . . 1 . 1 . . . 1 . . . . . . . . 2 . Patrol Status 1 | . . . . . . . . . . . . . . . . 1 . . . . . Recall Extermination 1 | . . . . . . . . . . . . . . . . . . . . 1 . Recall Reinforcements 2 | . . . . . . . . . . . 1 . . . . . . . . . 1 Hauler Manifests 2 | . . . . . 1 . 1 . . . . . . . . . . . . . . Registered Components 2 | . . . . . . . 1 . . . . . . . . . . . . . 1 Zone Layout 1 | . . . . . 1 . . . . . . . . . . . . . . . . Garrison Registry 2 | . . . . . . 1 . 1 . . . . . . . . . . . . . Proto ID Catalog 1 | . . . 1 . . . . . . . . . . . . . . . . . . Fabricator Hacks 11 | . . . . . . . . . . . 4 . . . . 3 . . . . 4 Network Status 3 | . . . . . . . . . . . . . . . . 1 . . . . 2 Load Schematic 5 | . . . . . . . . . . . 3 . . . . 1 . . . . 1 Build 3 | . . . . . . . . . . . 1 . . . . 1 . . . . 1 Repair Station Hacks 18 | . 9 . . . 4 . 1 . . . . . . . . . . . . . 4 Scan Component 11 | . 5 . . . 2 . 1 . . . . . . . . . . . . . 3 Repair 7 | . 4 . . . 2 . . . . . . . . . . . . . . . 1 Recycling Unit Hacks 15 | . . . . . . . 1 . 1 . 5 . . . . 5 . . . . 3 Process 1 | . . . . . . . . . . . 1 . . . . . . . . . . Retrieve Matter 6 | . . . . . . . . . . . 2 . . . . 3 . . . . 1 Retrieve Components 8 | . . . . . . . 1 . 1 . 2 . . . . 2 . . . . 2 Scanalyzer 23 | . . . . . 7 . 4 . 4 . 2 . . . . . . . . . 6 Insert Component 9 | . . . . . 3 . 2 . 1 . 1 . . . . . . . . . 2 Analyze 6 | . . . . . 2 . 1 . 1 . 1 . . . . . . . . . 1 Retrieve Study 8 | . . . . . 2 . 1 . 2 . . . . . . . . . . . 3 Garrison Access Hacks 3 | . . . . . 1 . 1 . 1 . . . . . . . . . . . . Unlock Access 3 | . . . . . 1 . 1 . 1 . . . . . . . . . . . . Unauthorized Hacks 27 | . 9 . . . 2 . 4 1 1 . 3 . . . . 3 . . . 2 2 Terminals 21 | . 7 . . . 2 . 3 1 1 . 2 . . . . 1 . . . 2 2 Assimilate 1 | . . . . . . . 1 . . . . . . . . . . . . . . Botnet 15 | . 2 . . . 2 . 2 1 1 . 2 . . . . 1 . . . 2 2 Skim 5 | . 5 . . . . . . . . . . . . . . . . . . . . Fabricators 1 | . . . . . . . . . . . 1 . . . . . . . . . . Recompile 1 | . . . . . . . . . . . 1 . . . . . . . . . . Repair Stations . | . . . . . . . . . . . . . . . . . . . . . . Recycling Units 5 | . 2 . . . . . 1 . . . . . . . . 2 . . . . . Reject 1 | . . . . . . . . . . . . . . . . 1 . . . . . Recyclers 1 | . . . . . . . . . . . . . . . . 1 . . . . . Tunnel 3 | . 2 . . . . . 1 . . . . . . . . . . . . . . Scanalyzers . | . . . . . . . . . . . . . . . . . . . . . . Garrison Access . | . . . . . . . . . . . . . . . . . . . . . . Data Cores Recovered 4 | . 1 . . . 1 . 1 . . . . . . . . . . . . . 1 Used 2 | . . . . . 1 . . . . . . . . . . . . . . . 1 Hacking Detections 83 | . 7 . . 1 9 1 9 3 6 2 14 . . . . 12 4 2 . 5 8 Full Trace Events 4 | . . . . . 1 . . . . . . . . . . 2 1 . . . . Feedback Events . | . . . . . . . . . . . . . . . . . . . . . . Feedback Blocked . | . . . . . . . . . . . . . . . . . . . . . . Robot Schematics Acquired 7 | . . . . . . . . . . . . . . 7 . . . . . . . Robots Built . | . . . . . . . . . . . . . . . . . . . . . . Authchips . | . . . . . . . . . . . . . . . . . . . . . . Time . | . . . . . . . . . . . . . . . . . . . . . . Total Robot Build Rating . | . . . . . . . . . . . . . . . . . . . . . . Part Schematics Acquired 17 | . . . . . 1 . 1 . 1 . 1 . . 12 . . . . . . 1 Parts Built 5 | . . . . . . . . . . . 1 . . . . 2 . . . . 2 Authchips 1 | . . . . . . . . . . . 1 . . . . . . . . . . Time 438 | . . . . . . . . . . . 204 . . . . 117 . . . . 117 Total Part Build Rating 36 | . . . . . . . . . . . 8 . . . . 14 . . . . 14 Part Studies Acquired 8 | . . . . . 2 . 1 . 2 . . . . . . . . . . . 3 Parts Repaired 7 | . 4 . . . 2 . . . . . . . . . . . . . . . 1 Time 230 | . 104 . . . 64 . . . . . . . . . . . . . . . 62 Parts Recycled . | . . . . . . . . . . . . . . . . . . . . . . Recycled Matter . | . . . . . . . . . . . . . . . . . . . . . . Retrieved Matter . | . . . . . . . . . . . . . . . . . . . . . . Retrieved Components 19 | . . . . . . . 10 . 3 . 3 . . . . 2 . . . . 1 Parts Scanalyzed 6 | . . . . . 1 . 1 . 1 . 1 . . . . . . . . . 2 Part Schematics Acquired 5 | . . . . . 1 . 1 . 1 . 1 . . . . . . . . . 1 Parts Damaged 2 | . . . . . 1 . . . . . 1 . . . . . . . . . . Bothacking | -11 -10 -10 -10 -9 -8 -8 -8 -8 -7 -7 -7 -7 -7 -7 -6 -6 -6 -6 -6 -6 -5 ------------ Run | Yrd Mat Min Exi Min Mat Gar Mat Gar Fac Gar Fac Low Low Dat Pro Fac Ext Cet Arc Hub Fac Used RIF Installer . | . . . . . . . . . . . . . . . . . . . . . . Robots Hacked 3 | . . . . . . . . . . . . . . . . . 1 1 1 . . Non-combat 1 | . . . . . . . . . . . . . . . . . . . 1 . . Combat 2 | . . . . . . . . . . . . . . . . . 1 1 . . . Robot Hacks Applied 3 | . . . . . . . . . . . . . . . . . 1 1 1 . . parse_system 3 | . . . . . . . . . . . . . . . . . 1 1 1 . . Relay Couplers Released 81 | . . . . . . 25 . 33 . 23 . . . . . . . . . . . Machine Destruction 81 | . . . . . . 25 . 33 . 23 . . . . . . . . . . . Fabnet Peak Effective % . | . . . . . . . . . . . . . . . . . . . . . . Robots Rewired 27 | . . . . . . 9 . . . . . . . . . . 18 . . . . Allies Hacked . | . . . . . . . . . . . . . . . . . . . . . . Hacks Repelled . | . . . . . . . . . . . . . . . . . . . . . . Allies | -11 -10 -10 -10 -9 -8 -8 -8 -8 -7 -7 -7 -7 -7 -7 -6 -6 -6 -6 -6 -6 -5 -------- Run | Yrd Mat Min Exi Min Mat Gar Mat Gar Fac Gar Fac Low Low Dat Pro Fac Ext Cet Arc Hub Fac Total Allies 47 | . . 3 . 1 . 9 1 . . 2 . . . . . . 26 5 . . . Largest Group 12 | . . 3 3 4 . 8 1 . . 2 1 . . . . . 12 12 9 7 . Highest-Rated Group 784 | . . 40 40 71 . 126 21 . . 70 39 . . . . . 481 784 730 551 . Highest-Rated Ally 159 | . . 16 16 31 . 21 21 . . 39 39 . . . . . 159 159 159 96 . Initial Warlord ECA Mod 39 | . . . . . . . 15 15 29 29 39 39 39 39 38 38 38 38 38 38 37 Total Orders 38 | . . . 4 . . 8 3 . . . . . . . . . . 10 2 11 . STAY 18 | . . . 4 . . 4 2 . . . . . . . . . . 1 . 7 . FOLLOW 19 | . . . . . . 4 1 . . . . . . . . . . 9 1 4 . AID 1 | . . . . . . . . . . . . . . . . . . . 1 . . Ally Attacks 380 | . . 21 . 15 . 33 14 . . 12 8 . . . . . 112 62 11 92 . Total Damage 9242 | . . 172 . 130 . 624 362 . . 196 103 . . . . . 2070 1932 406 3247 . Kills 72 | . . 3 . 1 . 6 5 . . 3 1 . . . . . 18 13 2 20 . Allies Corrupted 1 | . . . . . . . . . . . . . . . . . . . . 1 . Allies Melted . | . . . . . . . . . . . . . . . . . . . . . . Intel | -11 -10 -10 -10 -9 -8 -8 -8 -8 -7 -7 -7 -7 -7 -7 -6 -6 -6 -6 -6 -6 -5 ------- Run | Yrd Mat Min Exi Min Mat Gar Mat Gar Fac Gar Fac Low Low Dat Pro Fac Ext Cet Arc Hub Fac Active Infowar (turns) 19807 | 23 1859 843 1382 1109 722 7 99 553 1478 . 1499 767 382 92 664 1778 1465 1017 374 779 2915 Optics 8327 | . . . . . . . . . . . . . . . . 1777 1465 1017 374 779 2915 Sensors 9322 | . . 2 . . . . . . 1337 . 1495 767 364 92 661 1366 238 . . 552 2448 IFF 18 | . . . . . . . . . . . . . . . . 18 . . . . . Structural 2769 | . 13 . . 419 25 . . . 247 . 31 101 375 90 498 698 35 . . 40 197 Seismic 6138 | 23 1846 841 1382 690 697 7 99 553 . . . . . . . . . . . . . Jamming 612 | . . . . . . . . . 612 . . . . . . . . . . . . ECM 247 | . . . . . . . . . . . . . . . . 75 . . . . 172 Robot Analysis Total 3 | . 1 . . . . . . . . . . . . . . . 1 . . 1 . Derelict Logs Recovered 5 | . . 1 . 1 . . . . . . . 1 1 . 1 . . . . . . Drone Launches . | . . . . . . . . . . . . . . . . . . . . . . Drone Recoveries . | . . . . . . . . . . . . . . . . . . . . . . Exploration | -11 -10 -10 -10 -9 -8 -8 -8 -8 -7 -7 -7 -7 -7 -7 -6 -6 -6 -6 -6 -6 -5 ------------- Run | Yrd Mat Min Exi Min Mat Gar Mat Gar Fac Gar Fac Low Low Dat Pro Fac Ext Cet Arc Hub Fac Turns Passed 27337 | 105 1927 843 1382 1157 1850 1662 1877 1563 1670 1237 1664 785 413 92 724 1779 1465 1017 374 779 2972 Spaces Moved 15413 | 46 1002 502 826 674 832 828 941 679 1014 773 1090 684 353 95 586 1221 776 473 208 363 1447 Core 113 | 2 . . . . . . . . . . . . . . . . . . . . 111 Treads 8643 | . 939 502 826 674 832 828 941 679 57 . . . . . . . . 458 208 363 1336 Legs 103 | 40 63 . . . . . . . . . . . . . . . . . . . . Wheels 6554 | 4 . . . . . . . . 957 773 1090 684 353 95 586 1221 776 15 . . . Hover . | . . . . . . . . . . . . . . . . . . . . . . Flight . | . . . . . . . . . . . . . . . . . . . . . . Fastest Speed 50 | 50 120 160 160 160 160 160 160 162 105 105 90 105 105 90 105 105 112 112 160 160 50 Average Speed 138 | 154 157 160 160 160 160 160 162 164 116 105 104 105 105 90 105 110 127 161 160 160 152 Slowest Speed 243 | 190 160 160 160 160 240 160 229 243 162 105 105 105 105 105 105 130 130 220 160 160 240 Overloaded Moves . | . . . . . . . . . . . . . . . . . . . . . . Propulsion Burnouts . | . . . . . . . . . . . . . . . . . . . . . . Robots Hopped . | . . . . . . . . . . . . . . . . . . . . . . Potential Cave-ins 1 | . . . . . . . . . . . . . . . . 1 . . . . . Cave-ins Triggered . | . . . . . . . . . . . . . . . . . . . . . . Exploration Rate (%) 67 | 4 99 91 90 99 56 90 77 83 27 88 34 89 53 70 55 29 89 84 93 40 45 Regions Visited 21 Branch Regions 11 Pre-discovered Areas 12 | . 6 1 1 1 . . 1 . . . . 1 . 1 . . . . . . . Known Exits Taken 13 | . . . . . 1 . 1 . 1 . 1 1 1 1 1 1 1 1 1 1 . Unknown Exits Taken 5 | 1 1 1 1 1 . . . . . . . . . . . . . . . . . Scrap Searched 10 | . . 1 . 1 . . . . . . . 5 2 . 1 . . . . . . Spaces Dug 208 | . 2 . 10 3 5 5 12 24 18 1 33 13 4 . . 30 1 . . 7 40 Terrain Destroyed 784 | . 2 . 10 3 39 159 40 28 39 18 33 13 32 . 92 40 8 5 2 19 202 Melee 197 | . . . 10 3 5 5 12 24 18 1 33 13 4 . . 25 1 . . 7 36 Projectile 108 | . 2 . . . 1 . . 1 . 2 . . . . . 15 7 5 2 12 61 AOE 479 | . . . . . 33 154 28 3 21 15 . . 28 . 92 . . . . . 105 Terrain Rammed . | . . . . . . . . . . . . . . . . . . . . . . Walls Destroyed . | . . . . . . . . . . . . . . . . . . . . . . Machines Disabled . | . . . . . . . . . . . . . . . . . . . . . . Actions | -11 -10 -10 -10 -9 -8 -8 -8 -8 -7 -7 -7 -7 -7 -7 -6 -6 -6 -6 -6 -6 -5 --------- Run | Yrd Mat Min Exi Min Mat Gar Mat Gar Fac Gar Fac Low Low Dat Pro Fac Ext Cet Arc Hub Fac Total 19473 | 67 1237 531 859 717 1179 1041 1153 906 1398 1034 1486 732 386 101 651 1505 1092 674 232 489 2003 Wait 1557 | . 129 7 . 2 151 64 51 22 209 72 219 17 . . 20 75 34 120 11 57 297 Move 15393 | 45 1001 501 825 673 832 827 940 678 1013 772 1089 683 352 94 585 1220 775 472 207 362 1447 Hop . | . . . . . . . . . . . . . . . . . . . . . . Pick Up 199 | 7 18 4 3 1 23 4 16 9 14 12 12 2 8 . 4 17 10 12 . 2 21 Fast Attach 90 | 8 . 1 . . 10 . 7 2 8 1 8 1 2 2 . 9 9 9 . . 13 Attach 74 | . 3 . . . 6 5 4 5 4 7 5 . 3 1 1 10 4 1 . 2 13 Detach 38 | 1 . . . . 5 1 1 . 5 . 4 . 1 1 . 5 3 3 . . 8 Swap 522 | 1 19 1 2 22 32 14 20 47 55 19 58 14 7 1 23 54 31 5 2 22 73 Drop 232 | . 9 5 3 3 30 2 26 10 24 6 16 2 6 2 3 20 19 23 . 2 21 Fire 718 | 4 54 6 6 12 80 61 71 69 20 53 35 . 2 . 15 50 74 17 5 21 63 Melee 381 | . . . 20 3 9 31 12 55 46 17 40 13 5 . . 30 29 1 7 16 47 Ram 2 | . . . . . . . . . . . . . . . . . 1 . . 1 . Kick 1 | 1 . . . . . . . . . . . . . . . . . . . . . Crush 17 | . 4 2 . 1 1 . 5 . . . . . . . . . . . . 4 . Escape Stasis 105 | . . . . . . . . . . 58 . . . . . 15 32 . . . . Rewire 99 | . . 4 . . . 24 . . . . . . . . . . 71 . . . . Trap 8 | . . . . . . 8 . . . . . . . . . . . . . . . Miscellaneous 37 | . . . . . . . . 9 . 17 . . . . . . . 11 . . . Route ------- -11/Scrapyard -10/Materials (discovered 5 exits: *Mat x3 / *Min / [*Sub]) -10/Mines (discovered 3 exits: *Mat x2 / *Exi) -10/Exiles -9/Mines (discovered 2 exits: *Mat x2) -8/Materials (discovered 3 exits: *Fac x2 / Gar) -8/Garrison (discovered 3 exits: *Mat x3) -8/Materials (discovered 4 exits: *Fac x3 / Gar) -8/Garrison (discovered 3 exits: *Fac x3) -7/Factory (discovered 2 exits: *Fac / Gar) -7/Garrison (discovered 3 exits: *Fac x3) -7/Factory (discovered 3 exits: *Fac / *Low x2) -7/Lower Caves -7/Lower Caves (discovered 2 exits: *Fac / *Dat) -7/Data Miner -6/Proximity Caves -6/Factory (discovered 3 exits: *Fac / *Low / *Ext) -6/Extension (discovered 2 exits: *Fac / *Cet) -6/Cetus (discovered 2 exits: *Fac / *Arc) -6/Archives (discovered 3 exits: *Fac / *Hub x2) -6/Hub_04(d) -5/Factory (discovered 2 exits: *Fac x2) History --------- Turn | Location | Event 9 | -11/Scrapyard | Discovered new exit (range 15) 106 | -11/Scrapyard | Entered Materials 136 | -10/Materials | Discovered new exit (range 16) 305 | -10/Materials | Build established: Mutant 888 | -10/Materials | Discovered new exit (range 16) 1010 | -10/Materials | Discovered new exit (range 4) 1151 | -10/Materials | Discovered new exit (range 12) 1529 | -10/Materials | Discovered new exit (range 11) 1868 | -10/Materials | Learned Storage garrison access intel 1871 | -10/Materials | Repaired Lgt. Treads 1898 | -10/Materials | Repaired Lgt. Treads 1910 | -10/Materials | Learned location of Subcaves (-10) 1926 | -10/Materials | Repaired Lgt. Treads 1940 | -10/Materials | Loaded intel: 1 repair station location 1953 | -10/Materials | Repaired Lgt. Treads 1962 | -10/Materials | Learned location of Recycling (-9) 2025 | -10/Materials | Identified exit to Materials 2033 | -10/Materials | Entered Mines 2111 | -10/Mines | Received a Rocket Launcher from a helpful Derelict 2189 | -10/Mines | Assisted by bots powering up and referring to "LRC-V3" 2232 | -10/Mines | Discovered exit to Materials (range 8) 2348 | -10/Mines | Learned location of Zion (-6) 2476 | -10/Mines | Deemed a non-threat by the Exiles lab entrance 2478 | -10/Mines | Discovered new exit (range 5) 2590 | -10/Mines | Found a damaged Exp. Sensor Array with a note attached 2594 | -10/Mines | Found Prototype Device 2594 | -10/Mines | Identified Exp. Sensor Array 2654 | -10/Mines | Discovered exit to Materials (range 15) 2783 | -10/Mines | Met a Derelict shopkeep closing up shop 2876 | -10/Mines | Entered Exiles 2876 | -10/Exiles | Accompanied by 3 allies 2920 | -10/Exiles | Met 8R-AWN 2942 | -10/Exiles | Met EX-HEX 2993 | -10/Exiles | Met EX-BIN 3011 | -10/Exiles | Met EX-DEC 3119 | -10/Exiles | Visited The Gauntlet 3432 | -10/Exiles | Discovered new exit (range 10) 3710 | -10/Exiles | Aligned with FarCom system 3712 | -10/Exiles | Given EX-Vault access code 3750 | -10/Exiles | Opened EX-Vault 3765 | -10/Exiles | Found Longsword +1 3768 | -10/Exiles | Found Field Lobotomy Kit 3801 | -10/Exiles | Warned to stay clear of 0b10 Research branches 4220 | -10/Exiles | Attacked by the Exiles 4258 | -10/Exiles | Stole two prototypes: Field Lobotomy Kit, Longsword +1 4258 | -10/Exiles | Entered Mines 4258 | -9/Mines | Accompanied by 3 allies 4339 | -9/Mines | Met a Derelict bent on vengeance 4426 | -9/Mines | Received a Mining Laser from a helpful Derelict 4440 | -9/Mines | Discovered new exit (range 8) 4626 | -9/Mines | Discovered new exit (range 10) 4675 | -9/Mines | Lost 3 allies 5082 | -9/Mines | Found a hidden stash of uninstalled traps 5415 | -9/Mines | Entered Materials 5415 | -8/Materials | Evolved 4 slots: Propulsion x2, Utility x1, Weapon x1 5828 | -8/Materials | Found Prototype Launcher 5828 | -8/Materials | Identified Rocket Array 5832 | -8/Materials | Found Rocket Array 5834 | -8/Materials | Found Rocket Array 5837 | -8/Materials | Found Rocket Array 6224 | -8/Materials | Repaired Minigun 6252 | -8/Materials | Repaired Beam Cannon 6410 | -8/Materials | Discovered new exit (range 3) 6573 | -8/Materials | Central database locked down 6976 | -8/Materials | Build established: Tank 7242 | -8/Materials | Discovered new exit (range 16) 7265 | -8/Materials | Identified exit to Garrison 7265 | -8/Materials | Entered Garrison 7280 | -8/Garrison | Phase Generator disabled 7315 | -8/Garrison | Triggered checkpoint 7331 | -8/Garrison | Triggered checkpoint 7434 | -8/Garrison | Garrison Relay disabled 7449 | -8/Garrison | Triggered checkpoint 7522 | -8/Garrison | Triggered checkpoint 7554 | -8/Garrison | Triggered checkpoint 7601 | -8/Garrison | Discovered new exit (range 14) 7669 | -8/Garrison | Triggered checkpoint 7683 | -8/Garrison | Triggered checkpoint 7696 | -8/Garrison | Garrison Relay disabled 7776 | -8/Garrison | Garrison Relay disabled 7826 | -8/Garrison | Discovered new exit (range 84) 7826 | -8/Garrison | Discovered new exit (range 15) 7826 | -8/Garrison | Discovered new exit (range 43) 7969 | -8/Garrison | Build established: Scavenger-Mutant 8065 | -8/Garrison | Lost 6 allies 8245 | -8/Garrison | Triggered checkpoint 8298 | -8/Garrison | Garrison Relay disabled 8335 | -8/Garrison | Build established: Scavenger-Tank 8347 | -8/Garrison | Garrison Relay disabled 8819 | -8/Garrison | Triggered checkpoint 8837 | -8/Garrison | Garrison Relay disabled 8927 | -8/Garrison | Entered Materials 8927 | -8/Materials | Accompanied by 1 ally 9018 | -8/Materials | Central database locked down 9598 | -8/Materials | Discovered new exit (range 15) 9815 | -8/Materials | Discovered new exit (range 8) 10267 | -8/Materials | Lost 3 parts (1n1u1w) 10527 | -8/Materials | First assault squad dispatched 10728 | -8/Materials | Discovered new exit (range 5) 10750 | -8/Materials | Identified exit to Garrison 10758 | -8/Materials | Build established: Tank 10804 | -8/Materials | Entered Garrison 10864 | -8/Garrison | Triggered checkpoint 10925 | -8/Garrison | Garrison Relay disabled 11124 | -8/Garrison | Garrison Relay disabled 11131 | -8/Garrison | Garrison Relay disabled 11144 | -8/Garrison | Garrison Relay disabled 11150 | -8/Garrison | Garrison Relay disabled 11292 | -8/Garrison | Triggered checkpoint 11460 | -8/Garrison | Discovered new exit (range 12) 11552 | -8/Garrison | Triggered checkpoint 11571 | -8/Garrison | Garrison Relay disabled 11749 | -8/Garrison | Triggered checkpoint 11897 | -8/Garrison | Destroyed 8 combat bots 11954 | -8/Garrison | Triggered checkpoint 11968 | -8/Garrison | Garrison Relay disabled 12065 | -8/Garrison | Phase Generator disabled 12074 | -8/Garrison | Discovered new exit (range 7) 12162 | -8/Garrison | Triggered checkpoint 12204 | -8/Garrison | Triggered checkpoint 12237 | -8/Garrison | Garrison Relay disabled 12274 | -8/Garrison | Discovered new exit (range 11) 12323 | -8/Garrison | Discovered new exit (range 30) 12323 | -8/Garrison | Discovered new exit (range 14) 12323 | -8/Garrison | Discovered new exit (range 48) 12367 | -8/Garrison | Entered Factory 12367 | -7/Factory | Evolved 2 slots: Utility x2 12549 | -7/Factory | Identified exit to Garrison 13083 | -7/Factory | Discovered new exit (range 9) 13518 | -7/Factory | Build established: Mutant 14037 | -7/Factory | Entered Garrison 14086 | -7/Garrison | Phase Generator disabled 14346 | -7/Garrison | Garrison Relay disabled 14382 | -7/Garrison | Build established: Tank 14395 | -7/Garrison | Triggered checkpoint 14435 | -7/Garrison | Triggered checkpoint 14437 | -7/Garrison | Triggered checkpoint 14509 | -7/Garrison | Destroyed 13 combat bots 14543 | -7/Garrison | Discovered new exit (range 5) 14549 | -7/Garrison | Identified exit to Factory 14586 | -7/Garrison | Triggered checkpoint 14611 | -7/Garrison | Garrison Relay disabled 14682 | -7/Garrison | Lost 3 parts (1u2w) 14713 | -7/Garrison | Rescued a captive Derelict 14715 | -7/Garrison | Rescued a captive Derelict 14835 | -7/Garrison | Triggered checkpoint 14874 | -7/Garrison | Garrison Relay disabled 14906 | -7/Garrison | Discovered exit to Factory (range 14) 14967 | -7/Garrison | Triggered checkpoint 15000 | -7/Garrison | Discovered exit to Factory (range 7) 15049 | -7/Garrison | Triggered checkpoint 15117 | -7/Garrison | Garrison Relay disabled 15132 | -7/Garrison | Garrison Relay disabled 15136 | -7/Garrison | Build established: Gunner 15274 | -7/Garrison | Entered Factory 15274 | -7/Factory | Accompanied by 1 ally 16201 | -7/Factory | Fabricated Exp. Sensor Array? 16363 | -7/Factory | Discovered new exit (range 5) 16367 | -7/Factory | Identified exit to Factory 16474 | -7/Factory | First assault squad dispatched 16857 | -7/Factory | Identified exit to Lower Caves 16938 | -7/Factory | Entered Lower Caves 16974 | -7/Lower Caves | Spotted B-75 Beast 17137 | -7/Lower Caves | Met a Warlord Commander 17138 | -7/Lower Caves | Learned location of Warlord (-5) 17139 | -7/Lower Caves | Warlord Commander delivered Encrypted Comm Array 17142 | -7/Lower Caves | Core integrity fell below 50% 17195 | -7/Lower Caves | Encountered a Warlord checkpoint 17494 | -7/Lower Caves | Build established: Mutant 17585 | -7/Lower Caves | Learned Factory garrison access intel 17652 | -7/Lower Caves | Discovered new exit (range 14) 17722 | -7/Lower Caves | Identified exit to Lower Caves 17723 | -7/Lower Caves | Entered another Lower Caves area 17885 | -7/Lower Caves | Discovered exit to Factory (range 13) 18028 | -7/Lower Caves | Build established: Assassin 18043 | -7/Lower Caves | Learned Factory emergency access door positions 18048 | -7/Lower Caves | Encountered a Master Thief 18048 | -7/Lower Caves | Encountered a Master Thief 18049 | -7/Lower Caves | Encountered a Master Thief 18049 | -7/Lower Caves | Encountered a Master Thief 18051 | -7/Lower Caves | Longsword +1 stolen by Master Thief 18054 | -7/Lower Caves | Beamcaster stolen by Master Thief 18055 | -7/Lower Caves | Prc. Assault Rifle stolen by Master Thief 18110 | -7/Lower Caves | Discovered new exit (range 8) 18135 | -7/Lower Caves | Identified exit to Data Miner 18136 | -7/Lower Caves | Entered Data Miner 18138 | -7/Data Miner | Discovered new exit (range 6) 18155 | -7/Data Miner | Met Data Miner 18175 | -7/Data Miner | Learned location of Section 7 (-2) 18175 | -7/Data Miner | Acquired the access code to Warlord's prototype stash 18188 | -7/Data Miner | Received God Mode back door access code from Data Miner 18224 | -7/Data Miner | Identified exit to Proximity Caves 18228 | -7/Data Miner | Entered Proximity Caves 18351 | -6/Proximity Caves | Spotter reported a threat 18530 | -6/Proximity Caves | Build established: Skirmisher 18682 | -6/Proximity Caves | Spotter reported a threat 18863 | -6/Proximity Caves | Learned Factory terminal intel 18935 | -6/Proximity Caves | Discovered exit to Factory (range 13) 18952 | -6/Proximity Caves | Entered Factory 18952 | -6/Factory | Evolved 2 slots: Utility x2 18954 | -6/Factory | Loaded intel: 28 terminal locations 18955 | -6/Factory | Loaded intel: 4 garrison access locations 19075 | -6/Factory | Identified exit to DSF 19178 | -6/Factory | Watched by a mysterious "MATRIX" hacker. 19296 | -6/Factory | Fabricated Centrium Wheel? 19302 | -6/Factory | Search patrols dispatched 19512 | -6/Factory | Spotted B-75 Beast 19841 | -6/Factory | Discovered new exit (range 10) 19850 | -6/Factory | Identified exit to Lower Caves 19882 | -6/Factory | Build established: Assassin 19973 | -6/Factory | Discovered new exit (range 5) 19977 | -6/Factory | Identified exit to Factory 20131 | -6/Factory | Cargo convoy interrupted 20393 | -6/Factory | Discovered new exit (range 14) 20725 | -6/Factory | Identified exit to Extension 20728 | -6/Factory | Build established: Skirmisher 20731 | -6/Factory | Entered Extension 21021 | -6/Extension | Spotted B-75 Beast 21220 | -6/Extension | Rescued a captive Derelict 21237 | -6/Extension | Rescued a captive Derelict 21238 | -6/Extension | Rescued a captive Derelict 21246 | -6/Extension | Rescued a captive Derelict 21301 | -6/Extension | Build established: Gunner 21316 | -6/Extension | Rescued a captive Derelict 21316 | -6/Extension | Rescued a captive Derelict 21491 | -6/Extension | Spotted B-75 Beast 21530 | -6/Extension | Allies destroyed B-75 Beast 21558 | -6/Extension | Lost 6 allies 21873 | -6/Extension | Build established: Scavenger-Gunner 21959 | -6/Extension | Rescued a captive Derelict 21969 | -6/Extension | Incoming investigation squad redirected 22026 | -6/Extension | Rescued A7 22149 | -6/Extension | Discovered exit to Factory (range 10) 22150 | -6/Extension | Discovered new exit (range 6) 22170 | -6/Extension | Identified exit to Cetus 22196 | -6/Extension | Entered Cetus 22196 | -6/Cetus | Accompanied by 12 allies (A7) 22201 | -6/Cetus | Acquired a Cetus Manufacturing Module code from A7 22209 | -6/Cetus | Spotted Cetus Guard 22210 | -6/Cetus | Spotted Cetus Guard 22214 | -6/Cetus | Spotted Cetus Guard 22227 | -6/Cetus | Spotted Cetus Guard 22232 | -6/Cetus | Allies destroyed Cetus Guard 22238 | -6/Cetus | Allies destroyed Cetus Guard 22242 | -6/Cetus | Allies destroyed Cetus Guard 22245 | -6/Cetus | Destroyed Cetus Guard 22273 | -6/Cetus | Lost 6 allies 22508 | -6/Cetus | Escorted A7 to Cetus Mainframe 22550 | -6/Cetus | Started Cetus Manufacturing Module 22575 | -6/Cetus | Manufactured an Enhanced Grunt 22600 | -6/Cetus | Manufactured an Enhanced Grunt 22625 | -6/Cetus | Manufactured an Enhanced Grunt 22650 | -6/Cetus | Manufactured an Enhanced Grunt 22675 | -6/Cetus | Manufactured an Enhanced Grunt 22799 | -6/Cetus | Discovered new exit (range 21) 22844 | -6/Cetus | Spotted Cetus Guard 22847 | -6/Cetus | Spotted Cetus Guard 22850 | -6/Cetus | Spotted Cetus Guard 22852 | -6/Cetus | Discovered exit to Factory (range 22) 22854 | -6/Cetus | Spotted Cetus Guard 22857 | -6/Cetus | Allies destroyed Cetus Guard 22862 | -6/Cetus | Allies destroyed Cetus Guard 22865 | -6/Cetus | Allies destroyed Cetus Guard 22871 | -6/Cetus | Allies destroyed Cetus Guard 22888 | -6/Cetus | Build established: Commander-Tank 22893 | -6/Cetus | Met Revision 17 22946 | -6/Cetus | Security sweep announced 23177 | -6/Cetus | Identified exit to Archives 23213 | -6/Cetus | Entered Archives 23213 | -6/Archives | Accompanied by 9 allies (A7) 23218 | -6/Archives | Received a hacking code to weaken MAIN.C 23270 | -6/Archives | Discovered exit to Factory (range 21) 23272 | -6/Archives | Discovered new exit (range 17) 23316 | -6/Archives | Identified exit to Hub_04(d) 23354 | -6/Archives | Discovered exit to Hub_04(d) (range 13) 23586 | -6/Archives | Build established: Commander-Mutant 23587 | -6/Archives | Entered Hub_04(d) 23587 | -6/Hub_04(d) | Accompanied by 8 allies 24156 | -6/Hub_04(d) | Discovered exit to Factory (range 6) 24218 | -6/Hub_04(d) | Core integrity fell below 50% 24244 | -6/Hub_04(d) | Spotted B-75 Beast 24295 | -6/Hub_04(d) | Garrison activated, responded to threat 24300 | -6/Hub_04(d) | Build established: Scavenger-Tank 24334 | -6/Hub_04(d) | Network Hub disabled 24335 | -6/Hub_04(d) | Spotted Lightning 24335 | -6/Hub_04(d) | Spotted Lightning 24335 | -6/Hub_04(d) | Spotted Lightning 24358 | -6/Hub_04(d) | System corruption reached 10% 24361 | -6/Hub_04(d) | System corruption reached 30% 24366 | -6/Hub_04(d) | Entered Factory 24366 | -5/Factory | Evolved 2 slots: Power x1, Weapon x1 24633 | -5/Factory | Build established: Scavenger-Assassin 25528 | -5/Factory | Lost 4 parts (1p2u1w) 25536 | -5/Factory | Destroyed 11 combat bots 25775 | -5/Factory | Repaired Broken Adv. KE Penetrator 26100 | -5/Factory | Fabricated Imp. Remote Shield? 26166 | -5/Factory | First assault squad dispatched 26185 | -5/Factory | Incoming assault squad redirected 26232 | -5/Factory | Central database locked down 26481 | -5/Factory | Incoming assault squad redirected 26501 | -5/Factory | Discovered new exit (range 18) 26542 | -5/Factory | Identified exit to Factory 27108 | -5/Factory | Spotted B-75 Beast 27275 | -5/Factory | Cargo convoy interrupted 27281 | -5/Factory | Released all parts (6) 27284 | -5/Factory | Core integrity fell below 50% 27290 | -5/Factory | Core integrity fell below 20% 27308 | -5/Factory | Lost 8 parts (1p2n1u4w) 27330 | -5/Factory | Discovered exit to Factory (range 16) 27337 | -5/Factory | System corruption reached 10% 27338 | -5/Factory | Destroyed by P-70 Sage with High-powered Shock Rifle Last Messages --------------- 27281_ Released Enh. Optical Array. 27281_ Released Mic. Fission Core+. 27282_ U-05 Engineer builds a Wall. 27283_ Slug penetrates Wall. 27284_ Penetrated by Slug. 27284_ Slug penetrates Wall. 27286_ Wall collapses. 27286_ K-01 Serf cleans the Nuclear Reactor. 27288_ Slug penetrates Wall. 27290_ Penetrated by Slug. 27291_ System corrupted: Component data lost. 27291_ Penetrated by Slug. 27306_ YRUDZD65OZYF,XZCR951EPU 27321_ System corrupted: IFF burst signal emitted. 27330_ EXIT=FOUND: FACTORY 27333_ Acquired Adv. Hacking Suite. 27336_ C-30 ARC bursts open, deploying its payload. 27336_ G-67 Veteran unfolds itself. 27336_ G-50 Soldier unfolds itself. 27338_ Slug penetrates G-67 Veteran. Map ----- +----------------------------------------------------+ | ### ???# #???# #### # | | ### #?? ???+ #???##########??# # | | ??# #?? ??######+#######???????????????# # | | ??# #?? ?????? ???????????#####????# # | | ??# #?? ????# #?????????[ ???# # | | ??# #?? ????# """ #????????? """ ### # | | ? #?# ???# """ #??????/?? """ + # | | ###### #?# ]???# """ #?? // """ # # | | ?????#+#?# #??# #?? [ // + # | | ??????????# #??########?? # # | | ??????????# #???????????????###+##/##?## # | | ???????????# #??????#??????????# #### | | ???????????# #?????? ???????#### | | ???????????########?????? ??????+ | | ???????????????????????? ??????####### | | ???????????????????????? ?????????######### | | ????????????????????????" "????????? ??# | | ????????????????????????" "?????????? ?# | | ??????????????????????""" """???????? ?# | | ?????????????????????? ????????"" """ # | | ??????????????!????????"" ""?????????"" """ # | | ???????????????????????"" ""?????????"" """ + | | ????????????????????????" "???????# # | | ????????????#??????????? ???????# = # | | ?????????? ##########/################### | | ?????????? @ | | ?????????? R | | ?????????? < Y g p | | ?????????? R g%g | | ?????????? pp | | ?????????? ##########+####################+### | | ???????????? ????????# #??# | | ?????????????????????# """ #??# | | ?????????????????????# """ #??# | | ?????????????????????# "S #??# """ """ | | ?????????????????????# """ #??# """ """ | | ?????????????????????# "" """ ]#??# """ """ ! | | ?????????????????????# """ #??# | | ?????????????????????# """ #??# """ """ | | ?????????????????????# #??? """ """ """ | | ?????????????????????# ? #?????"" ??" R" | | ?????????????????????# ?????????? ??? """ | | ?????????????????????# ?????????? ??? ? | | ?????????????????????# #########?????????#????##?? | | ?????????????????????##??????????????????????????? | | ?????????????????????????????????????????????????? | | ?????????????????????????????????????????????????? | | ?????????????????????????????????????????????????? | | ?????????????????????????????????????????????????? | | ?????????????????????????????????????????????????? | +----------------------------------------------------+ Best States ------------- Heat Dissipation 75 Coolant Potential 65 Energy Generation 45 Energy Capacity 600 Matter Stores 300 Matter Capacity 300 Sight Range 22 Robot Scan Range 20 Terrain Scan Density 10 ECM Strength 1 Jamming Range 12 Armor Coverage 1200 Resistance: KI 30 Resistance: TH 10 Resistance: EM 25 Core Shielding 30 Weapon Cycling 20 Evasion (%) 50 Targeting Accuracy 8 Core Analysis 6 Recoil Reduction 10 Offensive Hacking 14 Defensive Hacking 10 Authchip Count 1 Item Schematics ----------------- Exp. Sensor Array | -8/Materials | Scanalyzed Imp. Signal Interpreter | -8/Materials | Scanalyzed Rocket Array | -7/Factory | Scanalyzed Transmission Jammer | -7/Factory | Scanalyzed Combat Drone Bay | -7/Data Miner | Free Lgt. Regenerative Plating | -7/Data Miner | Free Cld. Plasma Cannon | -7/Data Miner | Free Biomechanical Wings | -7/Data Miner | Free Gravity Neutralizer | -7/Data Miner | Free Antigrav System | -7/Data Miner | Free Imp. Focal Shield | -7/Data Miner | Free Lance | -7/Data Miner | Free Fusion Compressor | -7/Data Miner | Free Remote Force Field | -7/Data Miner | Free Imp. Heavy Treads | -7/Data Miner | Free Centrium Wheel | -7/Data Miner | Free Centrium Medium Armor Plating | -5/Factory | Scanalyzed Robot Schematics ------------------ B-48 Gladiator | -7/Data Miner | Free H-55 Commando | -7/Data Miner | Free G-47 Trooper | -7/Data Miner | Free S-27 Virus | -7/Data Miner | Free R-10 Processor | -7/Data Miner | Free G-50 Soldier | -7/Data Miner | Free B-60 Warrior | -7/Data Miner | Free Fabricated ------------ Exp. Sensor Array | x1 | -7/Factory | Authchip Centrium Wheel | x2 | -6/Factory Imp. Remote Shield | x2 | -5/Factory | Preloaded Repaired ---------- Lgt. Treads | 5% | -10/Materials Lgt. Treads | 7% | -10/Materials Lgt. Treads | 47% | -10/Materials Lgt. Treads | 74% | -10/Materials Minigun | 20% | -8/Materials Beam Cannon | 23% | -8/Materials Adv. KE Penetrator | 49% | -5/Factory | Broken Studied --------- Minigun | -8/Materials | Hacked Imp. Treads | -8/Materials | Hacked Imp. Ion Engine | -8/Materials | Hacked Arm. Huge Wheel | -7/Factory | Hacked Mic. Nuclear Core | -7/Factory | Hacked Mic. Fission Core | -5/Factory | Hacked Gauss Rifle | -5/Factory | Hacked Magnetic Acceleration Cannon | -5/Factory | Hacked Alien Tech Used ----------------- None Achievements -------------- Consequences Challenges ------------ None Game ------ Seed GravityMolecularFalx Manual? 0 Play Time 06:57:15 Cumulative 291.5 hours Start 2026.02.16 @ 01:04:13 End 2026.02.22 @ 16:59:03 Sessions 23 Manual Loads 0 Difficulty Rogue Special Mode None Game No. 85 Rogue 85 Adventurer 0 Explorer 0 Win Type - Total 2 Types 2/0/0/0/0/0/0/0/0/0 Lore% 56 Gallery% 55 Achievement% 45 Wizard Run 0 Options --------- Layout 0 ASCII 1 Keyboard 1 Movement Arrows Keybinds 0 Fullscreen 1 Font 24/Smallcaps Map View 76x50 Zoom Use 0% Tactical HUD 1 Map Filters NONE Filters NONE Steam 1 RUN: 263bbe4a-eda7-4f86-9f7e-459817d9c816